bitfinex/quotes_SOLUSD_20250903
["timestamp","ask_amount","ask_price","bid_price","bid_amount"]
[1756908867738,0.06,211.07,211.05,16.6005702]
[1756908868360,26.06,211.07,211.04,39.74]
[1756908868555,26.06,211.07,211.05,11.86235651]
[1756908868762,26.72,211.07,211.03,96.30097749]
[1756908868948,26.72,211.07,211.04,39.68]
[1756908869261,26.72,211.07,211.01,0.69]
[1756908869262,12.52235651,211.06,211.02,39.68]
[1756908869659,0.66,211.05,211.02,39.68]
[1756908870053,0.66,211.05,211.02,44.41879784]
[1756908870456,0.66,211.05,211.02,39.68]
[1756908870652,0.66,211.04,211.02,39.68]
[1756908871255,5.4577867,211.07,211.02,39.68]
[1756908871556,12.52235651,211.06,211.02,39.68]
[1756908871862,0.66,211.05,211.02,39.68]
[1756908872050,0.66,211.05,211.02,44.41879521]
[1756908872750,0.66,211.05,211.02,39.68]
[1756908872954,4.7977693,211.07,211.0,4.73912414]
[1756908873266,11.86235651,211.01,210.98,39.8]
[1756908873442,11.86235651,211.02,210.98,39.8]
[1756908873641,38.52235651,211.02,210.98,39.8]
[1756908874043,0.66,211.01,210.98,39.8]
[1756908874683,0.66,211.0,210.98,39.8]
[1756908875044,11.86235651,211.0,210.94,11.86235651]
[1756908875245,12.52235651,210.99,210.95,39.78]
[1756908875445,0.66,210.99,210.95,39.78]
[1756908875845,0.66,210.98,210.95,39.78]
[1756908876062,0.66,210.98,210.95,39.76]
[1756908876366,0.66,210.97,210.93,84.44087677]
[1756908876550,26.66,210.96,210.89,11.86235651]
[1756908876748,26.66,210.96,210.9,39.74]
[1756908876950,0.66,210.96,210.91,11.86235651]
[1756908877356,0.66,210.95,210.9,51.60235651]
[1756908877558,12.52235651,210.95,210.9,39.74]
[1756908878067,11.86235651,210.95,210.9,39.74]
[1756908878281,11.86235651,210.95,210.91,39.7]
[1756908878572,5.40047567,210.95,210.91,39.7]
[1756908878758,17.26283218,210.95,210.91,39.7]
[1756908878972,26.0,210.97,210.91,51.56235651]
[1756908879153,11.86235651,210.96,210.91,39.7]
[1756908879353,11.86235651,210.93,210.86,5.36132893]
[1756908879563,11.86235651,210.93,210.87,39.68]
[1756908879774,11.86235651,210.91,210.86,0.03]
[1756908879958,26.0,210.89,210.86,0.03]
[1756908880160,11.86235651,210.91,210.86,0.72]
[1756908880361,26.0,210.88,210.86,0.03]
[1756908880660,26.0,210.88,210.86,12.58235651]
[1756908880865,26.0,210.9,210.87,11.86235651]
[1756908881456,26.0,210.89,210.86,12.58235651]
[1756908881757,26.0,210.89,210.86,11.89235651]
[1756908882189,0.68,210.92,210.86,0.03]
[1756908882352,26.0,210.9,210.86,5.46247007]
[1756908882675,0.68,210.94,210.89,11.86235651]
[1756908883052,12.54235651,210.93,210.86,0.03]
[1756908883277,38.54235651,210.93,210.87,11.86235651]
[1756908883478,38.54235651,210.93,210.86,0.03]
[1756908883649,11.86235651,210.9,210.86,0.03]
[1756908883854,26.68,210.93,210.86,4.77232785]
[1756908884084,37.86235651,210.93,210.87,12.55235651]
[1756908884699,11.86235651,210.92,210.87,0.69]
[1756908884855,11.86235651,210.91,210.86,4.77232785]
[1756908885049,26.68,210.93,210.86,17.32468436]
[1756908885261,26.0,210.93,210.86,16.63468436]
[1756908885458,26.0,210.93,210.89,11.86235651]
[1756908885660,0.68,210.98,210.9,12.55235651]
[1756908885881,11.86235651,210.96,210.91,4.74135887]
[1756908886096,12.54235651,210.95,210.91,4.74135887]
[1756908886594,0.68,210.99,210.93,11.86235651]
[1756908886775,11.86235651,210.95,210.89,11.86235651]
[1756908887111,0.68,210.97,210.91,39.68]
[1756908887409,11.86235651,210.96,210.91,39.68]
[1756908887973,0.68,210.97,210.92,4.74113407]
[1756908888187,12.54235651,210.96,210.91,39.68]
[1756908888587,0.68,210.96,210.91,44.42135265]
[1756908888802,26.0,211.01,210.91,44.42135265]
[1756908889091,11.86235651,210.97,210.91,16.60370916]
[1756908889303,11.86235651,210.93,210.88,40.41]
[1756908889602,11.86235651,210.92,210.88,39.72]
[1756908889893,26.0,210.93,210.88,39.72]
[1756908890194,26.0,210.93,210.89,12.55235651]
[1756908890580,26.0,210.93,210.89,0.69]
[1756908890789,26.0,210.93,210.89,12.55235651]
[1756908890982,11.86235651,210.91,210.86,0.03]
[1756908891189,11.86235651,210.89,210.86,0.03]
[1756908891385,11.86235651,210.88,210.86,0.03]
[1756908891672,11.86235651,210.9,210.86,0.03]
[1756908892178,0.68,210.89,210.86,0.03]
[1756908892491,12.54235651,210.89,210.86,0.03]
[1756908892683,11.86235651,210.88,210.86,0.03]
[1756908892867,12.54235651,210.88,210.86,0.03]
[1756908893296,11.86235651,210.9,210.86,0.03]
[1756908893468,8.02567965,210.9,210.86,0.03]
[1756908893675,8.70567965,210.89,210.86,0.03]
[1756908894205,8.02567965,210.89,210.86,0.03]
[1756908894378,0.68,210.89,210.86,0.03]
[1756908894574,8.70567965,210.88,210.86,0.03]
[1756908894781,8.02567965,210.87,210.86,0.03]
[1756908894973,0.68,210.87,210.86,0.03]
[1756908895293,8.02567965,210.88,210.86,0.03]
[1756908895597,8.70567965,210.89,210.86,0.03]
[1756908895779,0.68,210.88,210.86,0.03]
[1756908896566,0.68,210.87,210.86,0.03]
[1756908896969,8.70567965,210.87,210.86,0.03]
[1756908897175,0.68,210.87,210.86,0.03]
[1756908897483,8.70567965,210.87,210.86,0.03]
[1756908897681,0.68,210.87,210.86,0.03]
[1756908897881,26.0,210.89,210.86,0.03]
[1756908898196,0.68,210.9,210.86,0.03]
[1756908898381,26.0,210.87,210.86,0.03]
[1756908899079,0.68,210.87,210.86,0.03]
[1756908899284,8.70567965,210.87,210.86,0.03]
[1756908899696,0.68,210.87,210.86,0.03]
[1756908899882,8.70567965,210.87,210.86,0.03]
[1756908900082,0.06,210.95,210.86,0.03]
[1756908900401,0.06,210.95,210.91,8.02567965]
[1756908900615,0.06,210.95,210.92,8.71567965]
[1756908900904,0.06,210.95,210.94,8.02567965]
[1756908901073,0.06,210.95,210.93,0.69]
[1756908901476,0.06,210.95,210.94,0.69]
[1756908901676,0.06,210.95,210.94,8.71567965]
[1756908902304,0.06,210.95,210.9,39.62]
[1756908902305,0.06,210.95,210.92,0.69]
[1756908902491,0.06,210.95,210.94,8.71567965]
[1756908903209,0.06,211.04,210.94,8.71567965]
[1756908903386,0.06,211.04,211.01,8.02567965]
[1756908903782,0.68,211.03,210.95,0.69]
[1756908903983,8.02567965,211.01,210.92,38.26]
[1756908904303,8.02567965,211.01,210.93,12.76658895]
[1756908904304,8.02567965,210.99,210.93,12.76658895]
[1756908904502,8.02567965,211.0,210.94,8.02567965]
[1756908904742,8.70567965,211.01,210.95,8.02567965]
[1756908905092,8.70567965,211.01,210.94,8.71567965]
[1756908905093,8.02567965,211.0,210.94,8.71567965]
[1756908905283,8.02567965,210.99,210.94,0.69]
[1756908905708,0.68,210.98,210.89,4.74161562]
[1756908905920,8.02567965,210.98,210.92,8.02567965]
[1756908906087,8.02567965,210.99,210.93,8.02567965]
[1756908906410,8.02567965,210.98,210.92,8.71567965]
[1756908906613,26.0,211.03,210.89,13.59559401]
[1756908906816,26.0,211.03,210.96,8.02567965]
[1756908906986,34.02567965,211.02,210.96,8.02567965]
[1756908907186,26.0,211.01,210.96,8.02567965]
[1756908907589,8.02567965,211.0,210.93,48.33567965]
[1756908907890,0.68,211.02,210.96,8.02567965]
[1756908908116,8.02567965,211.03,210.97,8.02567965]
[1756908908724,26.0,211.02,210.99,8.02567965]
[1756908908901,0.06,211.04,210.99,0.69]
[1756908909217,0.06,211.04,210.98,8.02567965]
[1756908909383,0.06,211.04,211.0,8.02567965]
[1756908909793,0.06,211.04,211.02,8.02567965]
[1756908910019,0.06,211.04,211.01,0.69]
[1756908910381,0.06,211.04,211.03,4.73866274]
[1756908910584,0.74,211.04,210.97,0.69]
[1756908910887,8.02567965,211.02,210.96,8.02567965]
[1756908911092,8.02567965,211.02,210.95,47.64567965]
[1756908911305,0.06,211.04,210.96,8.02567965]
[1756908911704,0.06,211.04,210.99,8.02567965]
[1756908911887,0.06,211.04,211.01,8.02567965]
[1756908912224,0.06,211.04,211.02,0.69]
[1756908912387,0.06,211.04,211.03,12.76434239]
[1756908912807,0.06,211.04,211.03,16.95247575]
[1756908912984,0.06,211.04,211.03,31.11670928]
[1756908912985,1e-08,211.04,211.03,31.11670928]
[1756908913188,1e-08,211.04,211.03,70.16806976]
[1756908913387,1e-08,211.04,211.03,62.14239011]
[1756908913588,1e-08,211.04,211.03,70.16806976]
[1756908913892,0.06,211.07,211.03,82.01472663]
[1756908914207,0.06,211.07,211.06,8.02567965]
[1756908914516,0.06,211.07,211.06,16.2618022]
[1756908914686,0.06,211.07,211.06,16.9518022]
[1756908914888,0.06,211.07,211.06,56.5518022]
[1756908915104,0.06,211.07,211.06,48.52612255]
[1756908915306,0.06,211.07,211.06,56.5518022]
[1756908916409,0.06,211.07,211.06,55.8618022]
[1756908916714,0.06,211.07,211.06,56.5518022]
[1756908917504,0.06,211.07,211.06,51.12381301]
[1756908917708,0.06,211.07,211.06,3.49813336]
[1756908917919,0.73,211.07,211.06,3.49813336]
[1756908918223,0.06,211.07,211.06,8.92612255]
[1756908918420,0.06,211.07,211.06,96.6518022]
[1756908918632,0.06,211.07,211.06,16.9518022]
[1756908921100,0.06,211.09,211.06,16.9518022]
[1756908921297,0.06,211.09,211.08,8.02567965]
[1756908921491,0.06,211.14,211.08,11.52381301]
[1756908921705,0.06,211.14,211.13,8.02567965]
[1756908921913,0.06,211.14,211.13,11.52381301]
[1756908922097,0.73,211.14,211.13,51.12381301]
[1756908922297,0.73,211.14,211.13,3.49813336]
[1756908922497,0.73,211.14,211.11,39.6]
[1756908922698,0.06,211.14,211.12,16.26552891]
[1756908922914,0.06,211.14,211.13,11.52891467]
[1756908923303,0.73,211.14,211.13,3.50323502]
[1756908923515,0.73,211.14,211.12,16.26552891]
[1756908923716,0.06,211.14,211.13,11.52891467]
[1756908924221,0.73,211.14,211.13,3.50323502]
[1756908924413,0.06,211.14,211.13,8.02567965]
[1756908924600,0.06,211.14,211.13,16.26533299]
[1756908924804,0.06,211.14,211.13,16.95533299]
[1756908924997,0.06,211.14,211.13,8.23965334]
[1756908925228,0.06,211.14,211.13,55.84533299]
[1756908925429,0.06,211.14,211.13,47.81965334]
[1756908925933,0.06,211.14,211.13,56.53533299]
[1756908926136,0.06,211.17,211.14,13.59559401]
[1756908926308,0.06,211.17,211.16,8.02567965]
[1756908926509,0.06,211.17,211.16,52.34142505]
[1756908926829,0.06,211.17,211.16,55.84466007]
[1756908927203,0.06,211.17,211.16,56.53466007]
[1756908927521,0.06,211.17,211.16,55.84466007]
[1756908927820,0.73,211.17,211.16,39.58]
[1756908929039,8.75567965,211.17,211.13,39.58]
[1756908929201,0.67,211.16,211.13,39.58]
[1756908929400,0.67,211.15,211.13,39.58]
[1756908929713,0.67,211.14,211.13,39.58]
[1756908931034,0.67,211.14,211.13,44.31641832]
[1756908931324,0.06,211.17,211.13,55.82606839]
[1756908931325,0.73,211.17,211.13,55.82606839]
[1756908931534,0.67,211.16,211.13,39.58]
[1756908931832,0.67,211.15,211.01,0.69]
[1756908931999,0.67,211.14,211.05,43.06437788]
[1756908932198,8.02567965,211.12,211.06,3.48437788]
[1756908932404,0.67,211.13,211.07,3.48437788]
[1756908932715,8.69567965,211.12,211.08,39.58]
[1756908932899,0.67,211.11,211.09,3.48437788]
[1756908933104,8.02567965,211.12,211.09,3.48437788]
[1756908933430,8.69567965,211.11,211.09,3.48437788]
[1756908933636,0.67,211.1,211.09,3.48437788]
[1756908933806,8.69567965,211.1,211.05,39.56]
[1756908934124,11.89924234,211.17,211.09,8.02567965]
[1756908934125,0.67,211.13,211.09,8.02567965]
[1756908934428,0.67,211.13,211.06,4.17483391]
[1756908934429,0.67,211.13,211.1,8.02567965]
[1756908934606,0.67,211.15,211.1,8.02567965]
[1756908934810,0.67,211.14,211.1,8.02567965]
[1756908935022,0.67,211.14,211.1,12.76268677]
[1756908935342,0.67,211.13,211.11,3.48209409]
[1756908935507,8.02567965,211.12,211.09,3.48209409]
[1756908935713,8.69567965,211.11,211.09,3.48209409]
[1756908936032,0.67,211.1,211.08,39.56]
[1756908936204,8.02567965,211.11,211.05,12.76385638]
[1756908936407,8.02567965,211.08,211.06,43.0434718]
[1756908936606,8.02567965,211.09,211.07,3.5134718]
[1756908936801,0.67,211.08,211.07,0.03]
[1756908937235,8.02567965,211.1,211.07,3.5134718]
[1756908937446,26.0,211.11,211.07,0.03]
[1756908937725,8.02567965,211.09,211.07,3.5134718]
[1756908937929,8.02567965,211.09,211.07,0.03]
[1756908938127,0.67,211.08,211.07,0.03]
[1756908938517,8.69567965,211.11,211.07,0.03]
[1756908938709,26.0,211.14,211.07,0.03]
[1756908938710,0.67,211.08,211.07,0.03]
[1756908938918,8.69567965,211.08,211.07,0.03]
[1756908940228,5.40754026,211.08,211.07,0.03]
[1756908940439,13.43321991,211.08,211.07,0.03]
[1756908941342,26.0,211.05,211.0,3.4834718]
[1756908941510,8.02567965,211.01,210.95,11.50915145]
[1756908941713,0.68,211.02,210.96,3.4834718]
[1756908941909,8.02567965,210.99,210.97,3.4834718]
[1756908942141,26.0,211.05,210.95,3.4834718]
[1756908942142,8.02567965,210.98,210.95,3.4834718]
[1756908942319,8.02567965,210.98,210.96,3.4834718]
[1756908942644,0.68,210.98,210.97,3.4834718]
[1756908942837,0.68,210.98,210.95,3.4834718]
[1756908942838,8.70567965,210.98,210.95,3.4834718]
[1756908943041,0.68,210.97,210.95,3.4834718]
[1756908943213,8.02567965,210.98,210.95,3.4834718]
[1756908943413,4.73843821,211.04,210.95,3.4834718]
[1756908943715,8.02567965,210.98,210.94,3.4834718]
[1756908943917,0.68,210.97,210.94,3.4834718]
[1756908944108,8.02567965,210.98,210.94,3.4834718]
[1756908944308,0.68,210.98,210.94,3.4834718]
[1756908944513,0.68,210.97,210.94,3.4834718]
[1756908944712,8.70567965,210.97,210.94,3.4834718]
[1756908944912,8.02567965,210.97,210.93,39.59]
[1756908945135,8.02567965,210.95,210.93,39.59]
[1756908945333,8.70567965,210.95,210.93,0.03]
[1756908945636,8.02567965,210.96,210.93,0.03]
[1756908945816,0.68,210.98,210.93,0.03]
[1756908946014,0.68,210.98,210.93,4.77089862]
[1756908946219,8.70567965,210.98,210.93,4.77089862]
[1756908946534,8.70567965,210.97,210.93,0.03]
[1756908946719,8.02567965,210.96,210.93,0.03]
[1756908946920,0.68,210.96,210.93,0.03]
[1756908947243,0.68,210.98,210.93,0.03]
[1756908947415,26.68,211.01,210.94,11.53074344]
[1756908947621,8.02567965,211.0,210.94,3.50506379]
[1756908947832,8.02567965,210.99,210.94,3.50506379]
[1756908948028,0.68,210.99,210.95,11.53046379]
[1756908948318,8.02567965,211.01,210.96,3.50478414]
[1756908948524,0.68,211.0,210.96,3.50478414]
[1756908948944,8.70567965,210.99,210.96,3.50478414]
[1756908949131,8.70567965,210.99,210.94,8.24546511]
[1756908949437,8.70567965,210.99,210.95,3.50478414]
[1756908949739,0.68,211.03,210.97,8.02567965]
[1756908949919,0.68,211.03,210.97,11.53046379]
[1756908950115,8.02567965,211.04,210.98,8.02567965]
[1756908950442,0.68,211.05,210.95,3.50474243]
[1756908950443,8.02567965,211.01,210.95,3.50474243]
[1756908950631,8.02567965,211.01,210.95,8.02567965]
[1756908950825,26.0,211.05,210.94,8.2454234]
[1756908951026,0.68,211.0,210.94,12.76636062]
[1756908951332,4.73754352,211.08,210.98,8.02567965]
[1756908951541,8.02567965,211.06,210.99,8.68567965]
[1756908951745,34.02567965,211.06,210.99,0.66]
[1756908952044,0.68,211.07,211.02,8.02567965]
[1756908952348,8.70567965,211.07,211.01,8.02567965]
[1756908952551,0.68,211.1,211.01,8.68567965]
[1756908952719,0.68,211.1,211.03,8.02567965]
[1756908952916,8.70567965,211.1,211.04,4.73843821]
[1756908953119,8.02567965,211.08,211.02,51.75225125]
[1756908953320,8.02567965,211.08,211.03,8.2451648]
[1756908953536,12.52265008,211.08,211.03,8.2451648]
[1756908953733,0.68,211.13,211.04,0.66]
[1756908954038,11.84265008,211.1,211.04,40.22]
[1756908954219,11.84265008,211.09,211.05,3.5065716]
[1756908954414,11.84265008,211.09,211.04,0.66]
[1756908954618,0.68,211.11,211.04,4.1665716]
[1756908954923,11.84265008,211.09,211.04,3.5065716]
[1756908955120,11.84265008,211.05,211.01,3.5065716]
[1756908955325,12.52265008,211.04,211.01,3.5065716]
[1756908955527,12.52265008,211.04,210.99,3.5065716]
[1756908955850,12.52265008,211.04,211.0,3.5065716]
[1756908956027,11.84265008,211.04,211.01,3.5065716]
[1756908956340,11.84265008,211.02,210.99,3.5065716]
[1756908956544,11.84265008,211.01,210.98,4.73978522]
[1756908956734,11.84265008,211.02,210.99,3.5065716]
[1756908957132,0.68,211.04,210.99,8.24610201]
[1756908957329,12.52265008,211.03,210.99,4.73953041]
[1756908957534,12.52265008,211.03,210.99,3.5065716]
[1756908957734,12.52265008,211.03,210.98,3.5065716]
[1756908958044,12.52265008,211.03,210.99,3.5065716]
[1756908958242,12.52265008,211.03,210.98,3.5065716]
[1756908958445,0.68,211.02,210.99,3.5065716]
[1756908959224,12.52265008,211.02,210.98,8.24635024]
[1756908959439,11.84265008,211.03,210.99,3.5065716]
[1756908959650,11.84265008,211.05,210.99,15.34922168]
[1756908959945,11.84265008,211.06,211.0,15.34922168]
[1756908960248,11.84265008,211.06,211.01,3.5065716]
[1756908960549,11.84265008,211.04,210.98,39.54]
[1756908960751,0.68,211.05,210.99,8.24562588]
[1756908960931,11.84265008,211.04,210.99,8.24562588]
[1756908961138,11.84265008,211.01,210.99,3.50626943]
[1756908961330,0.68,211.0,210.95,44.28025661]
[1756908961530,0.68,211.03,210.96,15.34891951]
[1756908961753,11.84265008,211.02,210.97,3.50626943]
[1756908961937,12.52265008,211.01,210.97,3.50626943]
[1756908962136,26.68,211.05,210.98,12.50265008]
[1756908962455,26.0,211.02,210.94,39.54]
[1756908962653,26.68,211.01,210.95,3.50937867]
[1756908962851,26.0,211.01,210.96,12.50265008]
[1756908963055,0.68,211.0,210.94,39.54]
[1756908963245,11.84265008,210.99,210.94,39.54]
[1756908963425,11.84265008,211.02,210.96,11.84265008]
[1756908963631,37.84265008,211.02,210.96,11.84265008]
[1756908964243,0.68,211.06,210.97,4.16834582]
[1756908964443,0.68,211.06,210.98,0.66]
[1756908964642,12.52265008,211.06,210.99,4.73956111]
[1756908964843,11.84265008,211.04,210.98,8.90811156]
[1756908965060,0.68,211.04,210.96,0.66]
[1756908965254,11.84265008,211.01,210.95,51.38265008]
[1756908965554,11.84265008,211.01,210.96,3.50834582]
[1756908965758,12.52265008,211.01,210.96,3.50834582]
[1756908966146,4.73801865,211.06,210.95,39.54]
[1756908966147,12.52265008,211.0,210.95,39.54]
[1756908966347,11.84265008,210.97,210.93,0.03]
[1756908966542,11.84265008,210.95,210.93,0.03]
[1756908966942,0.68,210.95,210.93,0.03]
[1756908967146,11.84265008,210.96,210.93,0.03]
[1756908967549,0.68,210.96,210.93,0.03]
[1756908967937,12.52265008,210.96,210.93,0.03]
[1756908968154,0.68,210.95,210.93,0.03]
[1756908968949,11.84265008,210.96,210.93,0.03]
[1756908969265,26.0,210.99,210.93,0.03]
[1756908969266,12.52265008,210.95,210.93,0.03]
[1756908969647,0.68,210.94,210.93,0.03]
[1756908969971,0.68,210.95,210.93,0.03]
[1756908970352,0.68,210.94,210.93,0.03]
[1756908970577,26.0,210.91,210.9,0.03]
[1756908970862,37.84265008,210.91,210.9,0.03]
[1756908971068,38.52265008,210.91,210.9,0.03]
[1756908971272,38.52265008,210.91,210.81,8.53748887]
[1756908971273,11.84265008,210.85,210.82,3.51479559]
[1756908971448,0.68,210.9,210.81,3.79410119]
[1756908971641,11.84265008,210.87,210.81,11.84265008]
[1756908971974,0.7,210.89,210.83,11.84265008]
[1756908972288,12.54265008,210.89,210.83,11.84265008]
[1756908972579,11.84265008,210.88,210.84,3.51734484]
[1756908972874,12.54265008,210.89,210.85,4.74270808]
[1756908973168,0.7,210.93,210.86,0.69]
[1756908973352,11.84265008,210.91,210.85,31.95947321]
[1756908973668,0.7,210.97,210.88,11.84265008]
[1756908973863,0.7,210.97,210.89,3.51563757]
[1756908974068,0.7,210.96,210.88,3.51563757]
[1756908974245,11.84265008,210.93,210.88,3.51563757]
[1756908974569,11.84265008,210.93,210.88,4.20576223]
[1756908974771,0.7,210.93,210.88,8.2576749]
[1756908974965,11.84265008,210.92,210.88,4.74191267]
[1756908975157,0.7,210.93,210.88,4.74191267]
[1756908975467,30.73981194,210.98,210.88,4.74191267]
[1756908975468,11.84265008,210.92,210.88,4.74191267]
[1756908975652,0.7,210.96,210.88,4.74191267]
[1756908975856,11.84265008,210.92,210.88,4.74191267]
[1756908976046,11.84265008,210.91,210.86,3.51576223]
[1756908976252,11.84265008,210.91,210.86,4.20576223]
[1756908976457,11.84265008,210.91,210.86,8.94823947]
[1756908976749,11.84265008,210.93,210.87,16.04841231]
[1756908977070,4.73798919,211.06,210.9,11.84265008]
[1756908977247,11.84265008,210.96,210.91,3.51576223]
[1756908977449,0.7,210.99,210.91,3.51576223]
[1756908977649,11.84265008,210.96,210.91,3.51576223]
[1756908978266,0.7,210.99,210.92,0.69]
[1756908978474,11.84265008,210.97,210.92,0.69]
[1756908978664,11.84265008,210.97,210.93,4.7409093]
[1756908978968,0.7,211.03,210.94,12.53265008]
[1756908979173,14.25212,211.05,210.96,11.84265008]
[1756908979474,11.84265008,211.02,210.97,3.52237289]
[1756908979850,11.84265008,211.01,210.97,3.52237289]
[1756908980046,11.84265008,211.0,210.96,3.52237289]
[1756908980477,11.84265008,211.02,210.97,4.21237289]
[1756908980674,0.06,211.07,210.96,11.84265008]
[1756908980675,0.06,211.07,211.02,4.7388873]
[1756908980972,0.06,211.07,211.03,3.52237289]
[1756908981170,0.06,211.07,211.06,11.84265008]
[1756908981365,0.06,211.07,211.06,3.52237289]
[1756908981565,0.06,211.07,211.05,3.52237289]
[1756908981765,0.06,211.07,211.06,16.05502297]
[1756908982652,0.06,211.07,211.06,3.52237289]
[1756908982871,0.06,211.07,211.06,20.79301216]
[1756908983465,1e-08,211.07,211.06,20.79301216]
[1756908983664,1e-08,211.08,211.06,20.79301216]
[1756908983864,1e-08,211.08,211.07,16.05502297]
[1756908984469,1e-08,211.08,211.07,4.21237289]
[1756908984669,1e-08,211.08,211.07,16.05502297]
[1756908984968,1e-08,211.08,211.07,48.45013761]
[1756908985272,1e-08,211.08,211.07,20.79278769]
[1756908985462,1e-08,211.08,211.07,60.29278769]
[1756908986177,1e-08,211.08,211.07,8.26013761]
[1756908986570,1e-08,211.08,211.06,3.52237289]
[1756908986760,1e-08,211.08,211.06,8.26035728]
[1756908986955,1e-08,211.08,211.06,3.52237289]
[1756908986956,12.54265008,211.07,211.06,3.52237289]
[1756908987162,0.7,211.07,211.02,16.58153738]
[1756908987362,1e-08,211.08,211.06,11.84265008]
[1756908987579,1e-08,211.08,211.07,15.36502297]
[1756908988077,1e-08,211.08,211.07,43.00237289]
[1756908988270,1e-08,211.08,211.07,3.52237289]
[1756908988474,1e-08,211.08,211.04,3.52237289]
[1756908988680,1e-08,211.08,211.05,51.32265008]
[1756908988873,1e-08,211.08,211.06,20.10282333]
[1756908989073,1e-08,211.08,211.07,15.35872283]
[1756908989582,1e-08,211.08,211.07,16.04872283]
[1756908990458,1e-08,211.08,211.07,15.35872283]
[1756908990675,1e-08,211.08,211.07,54.83872283]
[1756908990883,1e-08,211.08,211.07,59.57648755]
[1756908991796,1e-08,211.08,211.07,8.25383747]
[1756908992090,1e-08,211.08,211.07,4.73776472]
[1756908992312,1e-08,211.08,211.07,20.09298717]
[1756908992498,1e-08,211.08,211.07,20.78298717]
[1756908992783,1e-08,211.08,211.07,8.94033709]
[1756908992983,1e-08,211.08,211.07,20.78298717]
[1756908993568,1e-08,211.08,211.07,59.55298717]
[1756908993889,1e-08,211.08,211.07,44.19776472]
[1756908994388,1e-08,211.08,211.07,56.0404148]
[1756908994683,0.70000001,211.08,211.07,4.73776472]
[1756908994994,1e-08,211.08,211.07,16.5804148]
[1756908995468,1e-08,211.08,211.07,56.0404148]
[1756908995797,1e-08,211.08,211.07,59.54912573]
[1756908995970,1e-08,211.08,211.07,56.0704148]
[1756908996170,1e-08,211.08,211.07,59.57881522]
[1756908996682,1e-08,211.08,211.07,47.73616514]
[1756908996884,1e-08,211.08,211.07,59.57881522]
[1756908997090,1e-08,211.08,211.07,56.0704148]
[1756908997462,0.70000001,211.08,211.07,0.03]
[1756908998064,0.70000001,211.08,211.07,4.76776472]
[1756908999191,0.70000001,211.08,211.07,0.03]
[1756909000680,12.54265009,211.08,211.07,0.03]
[1756909001400,0.70000001,211.08,211.07,0.03]
[1756909001582,12.54265009,211.08,211.07,0.03]
[1756909002101,1e-08,211.08,211.07,0.03]
[1756909002476,1e-08,211.08,211.07,11.87265008]
[1756909002896,1e-08,211.08,211.07,12.58265008]
[1756909003409,1e-08,211.08,211.07,17.3204148]
[1756909003700,1e-08,211.08,211.07,8.98136212]
[1756909003899,1e-08,211.08,211.07,56.7604148]
[1756909004091,1e-08,211.08,211.07,60.2640122]
[1756909004990,0.06,211.11,211.07,72.108424]
[1756909005199,0.06,211.11,211.1,16.5797415]
[1756909005384,0.06,211.11,211.1,20.0833389]
[1756909005582,0.06,211.13,211.1,25.57205159]
[1756909005790,0.06,211.19,211.12,11.84265008]
[1756909006003,0.06,211.19,211.16,11.84265008]
[1756909006490,0.06,211.19,211.16,51.26265008]
[1756909006690,0.78,211.17,211.15,11.84265008]
[1756909006885,0.78,211.17,211.15,39.42]
[1756909007197,0.06,211.17,211.16,17.28839548]
[1756909007394,0.06,211.17,211.16,4.7357454]
[1756909007582,0.78,211.17,211.16,16.57839548]
[1756909007783,0.06,211.17,211.16,55.99839548]
[1756909008102,0.78,211.17,211.16,39.42]
[1756909008303,0.78,211.17,211.13,11.84265008]
[1756909008494,11.84265008,211.15,211.1,39.42]
[1756909008700,12.56265008,211.14,211.08,16.58019034]